bitfinex/quotes_ETHUSD_20250913
["timestamp","ask_amount","ask_price","bid_price","bid_amount"]
[1757777336713,0.0158903,4675.3,4675.1,3.03469167]
[1757777337046,0.0158903,4675.8,4675.1,0.8957]
[1757777337340,0.0158903,4675.8,4675.7,0.3144]
[1757777340231,3.781,4676.1,4675.7,0.3144]
[1757777340542,0.0158903,4676.0,4675.7,0.3144]
[1757777340849,0.0158903,4676.0,4675.7,2.45310719]
[1757777341148,3.776,4676.3,4675.7,0.3144]
[1757777341323,0.0158903,4676.2,4675.7,0.3144]
[1757777341520,0.0158903,4676.2,4675.7,2.45311006]
[1757777341945,0.0158903,4676.2,4675.7,0.3144]
[1757777342358,0.0158903,4676.2,4675.7,2.45311297]
[1757777342572,1.641,4676.6,4675.9,2.13860679]
[1757777342573,3.7898903,4676.5,4675.9,2.13860679]
[1757777342777,1.641,4676.6,4676.4,0.3144]
[1757777343053,0.08,4676.8,4676.4,0.3144]
[1757777343054,0.08,4676.8,4676.7,2.13825988]
[1757777343268,0.08,4676.8,4676.7,6.36974247]
[1757777343560,0.1864,4676.8,4676.7,6.34835988]
[1757777344044,0.08,4676.8,4676.7,7.7387291]
[1757777346353,0.08,4676.8,4676.7,7.3235291]
[1757777346517,0.08,4676.8,4676.7,3.3144]
[1757777346718,0.1864,4676.8,4676.7,5.45265988]
[1757777346954,0.1864,4676.8,4676.7,6.34835988]
[1757777347321,0.08,4676.8,4676.7,6.34835988]
[1757777347751,0.08,4676.8,4676.7,7.98935988]
[1757777348340,0.08,4676.8,4676.7,9.389969]
[1757777348941,0.08,4676.8,4676.7,9.496369]
[1757777350841,0.1064,4677.6,4677.5,2.13789417]
[1757777351171,0.1064,4677.6,4677.5,8.90489417]
[1757777351372,0.1064,4677.6,4677.5,9.21929417]
[1757777354876,0.1064,4677.6,4677.5,5.89689417]
[1757777354877,0.4218,4677.6,4677.5,5.89689417]
[1757777355368,0.1064,4677.6,4677.5,6.21129417]
[1757777355974,0.1064,4677.6,4677.5,9.21129417]
[1757777356273,0.1064,4677.6,4677.5,10.22025664]
[1757777356491,0.19698751,4678.4,4678.2,2.13753307]
[1757777356654,2.1391008,4679.3,4678.4,2.1374829]
[1757777356655,0.19698751,4678.5,4678.4,2.1374829]
[1757777356848,0.19698751,4678.7,4678.4,4.0467]
[1757777357175,0.082,4678.8,4678.4,4.0467]
[1757777357176,0.082,4678.8,4678.6,2.13738536]
[1757777357362,0.082,4678.8,4678.7,5.89034584]
[1757777358181,0.082,4678.8,4678.7,3.753]
[1757777359674,0.082,4678.8,4678.7,6.18304584]
[1757777368184,0.376,4678.8,4678.7,3.753]
[1757777368391,0.376,4678.8,4678.7,5.89034584]
[1757777368783,0.8039,4678.8,4678.7,5.89034584]
[1757777369089,1.2973,4678.8,4678.5,1.64]
[1757777369391,0.1064,4678.5,4678.3,3.734]
[1757777369690,1.2153,4678.4,4678.3,3.734]
[1757777370059,0.1064,4678.3,4678.0,2.13762808]
[1757777370280,0.1064,4678.3,4678.2,2.13757428]
[1757777370520,0.5998,4678.3,4678.2,5.87057428]
[1757777370667,0.8938,4678.3,4678.2,3.733]
[1757777371084,1.3217,4678.3,4678.2,5.87057428]
[1757777371804,1.3217,4678.3,4678.2,3.733]
[1757777373484,1.3217,4678.3,4678.1,2.13760442]
[1757777373706,1.3217,4678.3,4677.6,3.0]
[1757777373707,0.294,4678.3,4678.2,5.86757428]
[1757777374010,0.7239,4678.3,4678.2,5.86757428]
[1757777374237,0.002,4678.3,4678.2,6.16027428]
[1757777374379,0.1084,4678.3,4678.2,6.16027428]
[1757777374576,0.1084,4678.3,4678.2,5.86757428]
[1757777375105,0.4024,4678.3,4678.2,5.86757428]
[1757777377104,1.3237,4678.3,4678.2,5.86757428]
[1757777377673,1.3237,4678.3,4678.2,5.86157428]
[1757777378298,1.3237,4678.3,4678.2,2.13757428]
[1757777378698,1.3237,4678.3,4678.2,5.85957428]
[1757777378904,1.3237,4678.3,4678.2,2.13757428]
[1757777379103,0.8303,4678.3,4678.2,2.13757428]
[1757777379307,0.8303,4678.3,4678.2,5.85857428]
[1757777379535,0.4024,4678.3,4678.2,5.85857428]
[1757777382117,0.8958,4678.3,4677.0,3.0]
[1757777382308,0.8958,4678.3,4677.4,3.0]
[1757777382309,0.4279,4678.2,4677.4,3.0]
[1757777382507,0.4279,4678.2,4677.6,3.0]
[1757777382508,0.1064,4678.0,4677.6,3.0]
[1757777382711,0.1064,4678.0,4677.9,2.13771136]
[1757777382712,0.5343,4678.0,4677.9,2.13771136]
[1757777382913,0.5343,4678.0,4677.9,8.85371136]
[1757777383136,0.8283,4678.0,4677.9,8.85371136]
[1757777384425,0.1064,4678.0,4677.9,5.85371136]
[1757777384795,0.4004,4678.0,4677.9,5.85071136]
[1757777385004,0.8283,4678.0,4677.9,5.85071136]
[1757777386021,0.4004,4678.0,4677.9,5.85071136]
[1757777386905,0.1064,4678.0,4677.9,5.85071136]
[1757777389823,0.1064,4678.0,4677.9,5.84371136]
[1757777390022,0.1064,4678.0,4677.9,6.12991136]
[1757777390821,0.002,4678.3,4678.2,2.13757428]
[1757777391031,0.002,4678.3,4678.2,5.84157428]
[1757777391231,0.002,4678.3,4678.2,6.12777428]
[1757777395434,0.002,4678.3,4678.2,6.61857428]
[1757777396332,0.002,4678.3,4678.2,6.12777428]
[1757777397034,0.002,4678.3,4678.2,9.12777428]
[1757777397349,0.002,4678.3,4678.2,13.00795587]
[1757777398347,0.002,4678.3,4678.2,10.87417428]
[1757777399108,0.002,4678.3,4678.2,11.28937428]
[1757777399315,0.002,4678.3,4678.2,11.78017428]
[1757777399541,0.002,4678.3,4678.2,10.87417428]
[1757777400846,0.002,4678.3,4678.2,12.20605916]
[1757777401049,0.002,4678.3,4678.2,12.20214436]
[1757777401343,0.002,4678.3,4678.2,8.49814436]
[1757777401546,0.002,4678.3,4678.2,12.20014436]
[1757777402118,0.002,4678.3,4678.2,6.77757428]
[1757777402119,0.8038,4678.3,4678.2,6.77757428]
[1757777402318,1.2441,4678.3,4678.2,3.0]
[1757777402520,1.2441,4678.3,4678.0,2.13765484]
[1757777402835,1.2441,4678.3,4678.0,5.83962661]
[1757777402836,0.3156,4678.3,4678.0,5.83962661]
[1757777403021,0.3156,4678.3,4678.1,3.702]
[1757777403453,0.9285,4678.2,4678.1,3.702]
[1757777403624,1.2421,4678.2,4678.1,3.702]
[1757777404660,1.36671,4678.2,4677.3,2.13798558]
[1757777404864,1.36671,4678.2,4677.4,3.702]
[1757777404865,0.9443903,4678.1,4677.4,3.702]
[1757777405190,0.9443903,4678.1,4677.5,3.0]
[1757777405470,0.9285,4678.0,4677.5,3.702]
[1757777405671,0.3136,4677.6,4677.5,6.702]
[1757777405836,1.2421,4677.6,4677.5,6.702]
[1757777406222,1.2421,4677.6,4676.8,0.001]
[1757777406223,1.36631,4677.6,4676.8,0.001]
[1757777406521,0.0158903,4677.5,4676.9,3.702]
[1757777406768,0.3136,4677.0,4676.9,6.702]
[1757777406946,1.2421,4677.0,4676.8,0.001]
[1757777407266,0.0158903,4676.9,4676.8,0.001]
[1757777407472,2.15405874,4676.9,4676.8,0.001]
[1757777407757,1.2579903,4676.9,4676.8,0.001]
[1757777408338,3.39615874,4676.9,4676.8,0.001]
[1757777408732,4.18815874,4676.9,4676.8,0.001]
[1757777408948,7.85247141,4676.9,4676.8,0.001]
[1757777409173,7.85247141,4676.9,4676.3,0.001]
[1757777409174,3.792,4676.8,4676.3,0.001]
[1757777409338,2.1383056,4676.6,4676.3,0.001]
[1757777409539,3.24399705,4676.4,4676.3,0.001]
[1757777409750,3.25988735,4676.4,4676.3,0.001]
[1757777409924,5.56240665,4676.4,4676.3,0.001]
[1757777410124,5.54651635,4676.4,4676.3,0.001]
[1757777410832,9.24851635,4676.4,4676.3,0.001]
[1757777411632,12.44584884,4676.4,4676.3,0.001]
[1757777411845,12.56421888,4676.4,4676.3,0.001]
[1757777413169,12.56394229,4676.4,4676.3,0.001]
[1757777413871,12.56368035,4676.4,4676.3,0.001]
[1757777414684,13.0166944,4676.4,4676.3,0.001]
[1757777415480,13.0166944,4676.4,4672.0,0.4615]
[1757777415481,2.13986527,4673.2,4672.0,0.4615]
[1757777415665,3.7188903,4673.1,4672.0,0.4615]
[1757777416271,3.7188903,4673.1,4671.9,0.4194]
[1757777416272,3.7188903,4673.1,4671.9,0.0032]
[1757777416434,2.57605292,4673.0,4671.9,0.0032]
[1757777416639,0.0158903,4672.9,4671.9,0.0032]
[1757777416873,3.7188903,4672.9,4671.9,0.0032]
[1757777417441,3.7188903,4672.9,4671.8,1.04533059]
[1757777417644,3.7188903,4672.9,4672.1,2.14036052]
[1757777417855,0.0158903,4672.9,4672.0,2.14040937]
[1757777418061,0.0158903,4672.9,4671.8,1.68416365]
[1757777418062,5.84400791,4672.9,4671.8,1.68416365]
[1757777418264,2.14022805,4672.4,4671.8,0.16763059]
[1757777418467,0.3154,4671.9,4671.8,0.16763059]
[1757777418775,3.7198903,4672.3,4671.8,0.16763059]
[1757777418776,4.1559903,4672.3,4671.8,0.16763059]
[1757777419480,4.6369903,4672.3,4671.8,0.16763059]
[1757777419775,4.6211,4672.3,4671.8,0.16763059]
[1757777419979,3.7198903,4672.2,4671.8,0.16763059]
[1757777420275,0.3154,4671.9,4671.8,0.16763059]
[1757777420479,2.47174707,4671.9,4671.8,0.16763059]
[1757777420775,4.18084707,4671.9,4671.8,0.16763059]
[1757777421773,7.88584707,4671.9,4671.8,0.16763059]
[1757777421979,7.86995677,4671.9,4671.8,0.16763059]
[1757777422277,3.08706196,4671.9,4671.8,0.16763059]
[1757777422477,5.7453903,4671.9,4671.8,0.16763059]
[1757777422681,1.641,4672.5,4671.8,0.47313059]
[1757777422850,0.0158903,4672.4,4671.8,0.47313059]
[1757777423182,3.705,4672.3,4671.8,0.47313059]
[1757777423385,3.7208903,4672.2,4671.8,0.47313059]
[1757777423586,3.7208903,4672.2,4671.8,2.61362831]
[1757777423784,0.0158903,4672.2,4671.8,0.47313059]
[1757777424082,3.7208903,4672.2,4671.8,0.47313059]
[1757777424485,0.0158903,4672.2,4671.8,0.47313059]
[1757777424644,5.5661,4673.3,4671.9,3.89910456]
[1757777424645,0.0158903,4673.0,4671.9,3.89910456]
[1757777424848,0.0158903,4673.0,4671.9,5.62336133]
[1757777424849,0.1064,4672.0,4671.9,5.62336133]
[1757777425147,0.1064,4672.0,4671.9,2.44595677]
[1757777425343,0.1064,4672.0,4671.9,5.44595677]
[1757777425560,0.4361,4672.7,4671.9,0.3055]
[1757777425760,2.62105412,4672.8,4671.9,2.14045095]
[1757777425761,0.0158903,4672.6,4671.9,2.14045095]
[1757777425960,0.30098933,4672.6,4671.8,0.16763059]
[1757777426583,3.7218903,4672.6,4672.5,0.3055]
[1757777426748,3.706,4672.8,4672.5,0.3055]
[1757777426950,0.0158903,4672.7,4672.5,0.3055]
[1757777427374,2.123,4673.3,4672.5,0.3055]
[1757777427375,0.0158903,4672.9,4672.5,0.3055]
[1757777427695,1.642,4674.2,4672.8,3.0]
[1757777427980,1.8208903,4674.1,4673.7,2.13963122]
[1757777428163,0.0158903,4674.1,4673.5,2.13967826]
[1757777428363,0.0158903,4674.1,4673.6,2.13967817]
[1757777428557,0.0158903,4674.1,4673.3,2.13980864]
[1757777428558,0.0158903,4674.1,4674.0,0.3055]
[1757777428945,0.0158903,4674.1,4673.4,2.13976122]
[1757777428946,0.3312903,4674.1,4673.4,2.13976122]
[1757777429152,1.01196923,4674.1,4673.3,2.13981048]
[1757777429361,0.0158903,4674.1,4674.0,0.3055]
[1757777429560,0.0158903,4674.3,4674.0,0.3055]
[1757777429762,5.77287256,4675.8,4674.5,2.13922176]
[1757777429763,0.0158903,4674.9,4674.5,2.13922176]
[1757777429976,2.5591,4675.6,4674.1,0.8777]
[1757777429977,3.706,4675.3,4674.6,2.1391948]
[1757777430175,0.0158903,4675.2,4674.7,0.3055]
[1757777430549,0.0158903,4675.2,4674.7,2.4446747]
[1757777430756,1.642,4675.6,4674.7,3.3223747]
[1757777430757,1.7488903,4675.5,4674.7,3.3223747]
[1757777430958,1.7488903,4675.5,4674.7,0.3055]
[1757777431195,0.7984,4674.8,4673.4,0.4615]
[1757777431407,0.7984,4674.8,4673.4,3.4615]
[1757777431408,1.2503903,4674.8,4673.4,3.4615]
[1757777431687,1.2503903,4674.8,4674.0,2.13948177]
[1757777431892,1.2503903,4674.8,4673.9,2.13954084]
[1757777432063,1.2503903,4674.8,4674.0,2.13947593]
[1757777432269,1.2503903,4674.8,4673.7,2.13962207]
[1757777432463,0.3332903,4674.8,4673.7,2.13962207]
[1757777432669,0.3332903,4674.8,4673.7,3.0]
[1757777433186,0.3332903,4674.8,4674.0,2.13949024]
[1757777433187,0.82902933,4674.8,4674.0,2.13949024]
[1757777433392,0.82902933,4674.8,4674.1,2.13943472]
[1757777433571,0.82902933,4674.8,4674.0,2.13949262]
[1757777433767,0.4361,4674.7,4673.4,0.4615]
[1757777433972,0.0158903,4674.6,4673.5,2.13971374]
[1757777434163,0.35699303,4674.5,4673.5,2.13970957]
[1757777434364,0.0158903,4674.4,4673.3,3.78180095]
[1757777434597,0.0158903,4674.4,4672.9,0.4615]
[1757777434897,0.3154,4673.0,4672.0,0.5]
[1757777435099,0.3154,4673.0,4672.0,0.001]
[1757777435258,0.3154,4673.0,4672.1,2.14036514]
[1757777435259,0.0158903,4672.9,4672.1,2.14036514]
[1757777435460,0.0158903,4672.9,4672.1,3.0]
[1757777435691,0.0158903,4673.2,4672.4,2.14021056]
[1757777435875,0.1064,4672.1,4672.0,0.001]
[1757777436202,0.1064,4672.1,4672.0,0.3065]
[1757777436362,0.1064,4672.1,4672.0,0.001]
[1757777436563,0.1064,4672.1,4672.0,2.44691095]
[1757777436769,0.1064,4672.1,4672.0,2.90841095]
[1757777436984,0.0158903,4673.1,4672.0,2.09989815]
[1757777437183,0.0158903,4673.1,4672.0,0.3065]
[1757777437565,0.0158903,4673.1,4672.2,3.0]
[1757777437772,0.4361,4673.0,4672.3,2.14025548]
[1757777438120,0.0158903,4672.9,4672.5,2.14017867]
[1757777438303,0.0158903,4672.9,4672.2,3.0]
[1757777438464,0.0158903,4672.9,4672.0,0.001]
[1757777438465,0.0158903,4672.9,4672.8,0.3055]
[1757777438664,0.0158903,4673.3,4672.8,0.3055]
[1757777438993,0.0158903,4673.3,4672.0,0.001]
[1757777438994,1.17624434,4673.3,4672.0,0.001]
[1757777439175,0.69524434,4673.3,4672.0,0.001]
[1757777439364,1.642,4673.5,4672.8,2.14003216]
[1757777439365,0.0158903,4673.2,4672.8,2.14003216]
[1757777439560,0.0158903,4673.2,4672.1,0.8777]
[1757777439561,0.0158903,4673.4,4672.6,0.89910136]
[1757777439788,0.0158903,4673.4,4673.1,0.3055]
[1757777440781,4.9128903,4674.3,4673.2,2.13986133]
[1757777440980,0.58299903,4674.2,4673.5,2.13968608]
[1757777441186,0.0158903,4674.1,4673.6,2.13966935]
[1757777441584,0.0158903,4674.1,4673.2,3.0]
[1757777441943,0.3154,4673.4,4672.4,0.4615]
[1757777442145,0.4519903,4673.9,4673.3,0.3055]
[1757777442358,0.0158903,4674.7,4673.4,0.89909769]
[1757777442653,0.0158903,4674.7,4674.0,2.13948204]
[1757777442854,0.4519903,4674.7,4674.0,2.13948731]
[1757777443016,0.4519903,4674.7,4674.2,2.13939954]
[1757777443222,0.4519903,4674.7,4673.8,3.0]
[1757777443445,0.4519903,4674.7,4674.1,2.13943441]
[1757777443759,0.46529903,4674.6,4673.5,0.02139723]
[1757777443921,0.0158903,4674.5,4674.2,2.13936033]
[1757777444116,0.48118933,4674.6,4674.3,2.13935678]
[1757777444454,0.48118933,4674.6,4674.0,2.1394798]
[1757777444455,0.0178903,4674.8,4674.4,2.13926996]
[1757777444838,0.0178903,4674.8,4673.1,3.0]
[1757777444839,0.3154,4674.5,4673.1,3.0]
[1757777445157,2.13940321,4674.3,4673.1,3.0]
[1757777445353,2.13945953,4674.1,4673.1,5.13990712]
[1757777445557,2.13958743,4673.8,4673.0,1.642]
[1757777445758,0.4869903,4673.7,4672.8,2.14004436]
[1757777445961,2.62662888,4673.7,4672.5,3.0]
[1757777446257,2.62662888,4673.7,4672.4,9.31771041]
[1757777446456,0.4869903,4673.7,4672.4,3.0]
[1757777446662,0.9790903,4673.7,4672.4,5.14021437]
[1757777446961,0.31186894,4673.6,4672.6,2.14013544]
[1757777447168,0.0158903,4673.5,4672.4,3.0]
[1757777447327,0.1064,4672.6,4672.4,3.0]
[1757777447676,0.1064,4672.6,4672.2,1.642]
[1757777447677,0.1064,4672.6,4672.2,2.14030956]
[1757777447825,0.0158903,4673.0,4672.2,2.14030956]
[1757777448022,0.1064,4672.2,4671.8,0.16763059]
[1757777448846,0.1064,4672.2,4671.8,2.30812598]
[1757777449049,0.1064,4672.2,4671.8,0.16763059]
[1757777449435,0.4711,4672.6,4671.8,0.16763059]
[1757777449436,0.0158903,4672.1,4671.8,0.16763059]
[1757777449825,2.89406514,4672.1,4671.8,0.16763059]
[1757777450071,0.7537,4672.1,4671.8,0.16763059]
[1757777450363,0.7695903,4672.1,4671.8,0.16763059]
[1757777451430,2.90995544,4672.1,4671.8,0.16763059]
[1757777451630,0.7695903,4672.1,4671.8,0.16763059]
[1757777451857,4.20338311,4672.1,4671.8,0.16763059]
[1757777452064,4.66578311,4672.1,4671.8,0.16763059]
[1757777452230,4.84676814,4672.1,4671.8,0.16763059]
[1757777452436,5.16183974,4672.1,4671.8,0.16763059]
[1757777452764,4.84676814,4672.1,4671.8,0.16763059]
[1757777453139,4.84676814,4672.1,4669.9,0.02141373]
[1757777453344,0.792,4671.9,4669.7,0.4888]
[1757777453576,1.12636563,4671.8,4670.0,0.432]
[1757777453779,0.19687533,4671.7,4670.3,0.432]
[1757777454073,3.93676563,4671.6,4670.7,0.432]
[1757777454245,0.19687533,4671.5,4670.7,0.432]
[1757777454445,0.21276563,4671.4,4670.9,0.31418841]
[1757777454642,0.4512,4672.3,4671.0,3.432]
[1757777454643,0.19687533,4671.3,4671.0,3.432]
[1757777454841,0.19687533,4671.2,4670.8,3.08]
[1757777455042,0.19687533,4671.1,4670.8,3.08]
[1757777455273,0.0158903,4671.8,4671.0,0.2878]
[1757777455574,0.19668783,4671.7,4671.0,0.2878]
[1757777455779,0.21257813,4671.6,4671.1,2.14082336]
[1757777455956,0.19668783,4671.5,4671.1,2.14082336]
[1757777456293,0.19668783,4671.4,4671.2,2.5727717]
[1757777456495,0.0158903,4671.9,4671.4,2.14067819]
[1757777456797,0.16763059,4673.0,4671.4,2.14067819]
[1757777456798,0.1966821,4671.8,4671.5,2.1405993]
[1757777456942,2.14023152,4672.4,4671.7,0.2878]
[1757777457144,0.21261525,4672.3,4671.7,0.2878]
[1757777457369,0.19672495,4672.2,4671.7,0.2878]
[1757777457576,2.59137227,4672.6,4671.7,0.2878]
[1757777457577,0.21261525,4672.1,4671.7,0.2878]
[1757777457786,0.19672495,4672.0,4671.7,0.2878]
[1757777458075,0.3025,4671.8,4671.0,1.642]
[1757777458387,0.21261525,4671.7,4671.0,1.642]
[1757777458574,0.19672495,4671.6,4671.0,1.642]
[1757777458876,0.21261525,4671.5,4671.0,1.642]
[1757777459077,0.19672495,4671.4,4670.8,0.08]
[1757777459385,0.0158903,4671.3,4670.8,2.22093444]
[1757777459595,0.21261525,4671.6,4671.2,0.2878]
[1757777459770,0.0158903,4671.6,4671.2,0.2878]
[1757777459971,2.15648648,4671.6,4671.2,0.2878]
[1757777460281,1.53050302,4671.6,4670.8,0.08]
[1757777460480,4.1880903,4671.6,4670.8,0.08]
[1757777460711,4.38481525,4671.6,4670.8,0.08]
[1757777460922,0.21261525,4671.6,4670.8,2.22095921]
[1757777461122,0.0158903,4671.6,4670.9,2.57291502]
[1757777461427,0.4512,4672.0,4670.8,0.08]
[1757777461428,3.93261525,4671.8,4670.8,0.08]
[1757777461619,2.14086959,4671.0,4670.8,0.08]
[1757777461917,0.66381525,4671.7,4670.8,0.08]
[1757777461918,2.45930532,4670.9,4670.8,0.08]
[1757777462086,7.88390532,4670.9,4670.8,0.08]
[1757777462276,3.55373997,4670.9,4670.8,0.08]
[1757777462479,7.83756379,4670.9,4670.8,0.08]
[1757777462695,8.01839844,4670.9,4670.8,0.08]
[1757777463219,4.28739844,4670.9,4670.8,0.08]
[1757777463425,4.78304877,4670.9,4670.8,0.08]
[1757777463633,0.19672495,4671.0,4670.8,0.08]
[1757777463833,3.7468903,4670.9,4670.8,0.08]
[1757777464041,6.62561502,4670.9,4670.8,0.08]
[1757777464199,8.07673997,4670.9,4670.8,0.08]
[1757777465420,8.3911602,4670.9,4670.8,1e-08]
[1757777465632,9.3806056,4670.9,4670.8,1e-08]
[1757777465934,9.57711765,4670.9,4670.8,1e-08]
[1757777466420,5.84597949,4670.9,4670.8,1e-08]
[1757777466620,5.33497337,4670.9,4670.8,1e-08]
[1757777466955,9.07597337,4670.9,4670.8,1e-08]
[1757777467102,9.27269832,4670.9,4670.8,1e-08]
[1757777467720,9.27269832,4670.9,4670.8,0.00100001]
[1757777468298,10.03304811,4670.9,4670.8,0.00100001]
[1757777468482,10.22922004,4670.9,4670.8,0.00100001]
[1757777468682,10.03304811,4670.9,4670.8,0.00100001]
[1757777468894,13.2292207,4670.9,4670.8,0.00100001]
[1757777469686,13.2292207,4670.9,4668.8,0.08]
[1757777469687,2.14183212,4668.9,4668.8,0.08]
[1757777469912,4.59272242,4668.9,4668.8,0.08]
[1757777470112,9.55393212,4668.9,4668.8,0.08]
[1757777470313,9.09153212,4668.9,4668.8,0.08]
[1757777470508,10.04173212,4668.9,4668.8,0.08]
[1757777470697,10.77128135,4668.9,4668.8,0.08]
[1757777471099,10.9671795,4668.9,4668.8,0.08]
[1757777471284,10.96707365,4668.9,4668.8,0.08]
[1757777471905,10.77828135,4668.9,4668.8,0.08]
[1757777472109,7.01128135,4668.9,4668.8,0.08]
[1757777472310,0.4888,4669.0,4668.8,0.3678]
[1757777472509,3.7868903,4668.9,4668.8,0.8566]
[1757777472923,3.7868903,4668.9,4668.8,0.3678]
[1757777473131,3.7888903,4668.9,4668.8,0.7998]
[1757777473289,3.7878903,4668.9,4668.8,0.7998]
[1757777473733,4.33097933,4668.9,4668.8,0.08]
[1757777474032,8.48091145,4668.9,4668.8,0.08]
[1757777474196,8.66094215,4668.9,4668.8,0.08]
[1757777475413,8.66594215,4668.9,4668.8,0.08]
[1757777477194,0.792,4668.8,4666.8,0.08]
[1757777477434,2.14247445,4667.6,4666.8,0.08]
[1757777477614,5.4318903,4667.5,4666.8,0.08]
[1757777477928,1.643,4667.5,4666.8,0.08]
[1757777478258,3.7888903,4667.4,4666.8,0.08]
[1757777478399,0.0158903,4667.3,4666.9,0.4292]
[1757777478595,3.772,4667.2,4666.8,0.08]
[1757777478796,0.0158903,4667.1,4666.9,0.4292]
[1757777478996,0.0158903,4667.1,4667.0,0.7314]
[1757777479438,1.643,4667.5,4667.0,0.7314]
[1757777479439,0.0158903,4667.4,4667.0,0.7314]
[1757777479631,0.0158903,4667.4,4667.1,0.4292]
[1757777479632,3.77,4667.3,4667.1,0.4292]
[1757777479792,3.77,4667.3,4666.8,0.08]
[1757777479793,2.14272444,4667.0,4666.8,0.08]
[1757777479994,3.7848903,4666.9,4666.8,0.08]
[1757777480233,3.98076879,4666.9,4666.8,0.08]
[1757777480437,3.7848903,4666.9,4666.8,0.08]
[1757777480642,5.9276403,4666.9,4666.8,0.08]
[1757777480936,4.74857849,4666.9,4666.8,0.08]
[1757777481136,4.74857849,4666.9,4666.8,0.8114]
[1757777481137,0.19587849,4666.9,4666.8,0.8114]
[1757777481439,7.73213594,4666.9,4666.8,0.08]
[1757777481634,7.98426609,4666.9,4666.8,0.08]
[1757777481849,0.792,4666.3,4663.3,1e-08]
[1757777482147,0.792,4666.8,4663.4,0.4292]
[1757777482148,2.45047433,4666.2,4663.4,0.4292]
[1757777482349,2.45047433,4666.2,4663.3,1e-08]
[1757777482350,1.96283337,4666.1,4663.3,1e-08]
[1757777482548,2.14362272,4665.0,4663.3,1e-08]
[1757777482708,4.19548179,4664.9,4663.3,1e-08]
[1757777482897,2.14435819,4663.4,4663.3,1e-08]
[1757777483297,2.17116266,4663.4,4663.3,1e-08]
[1757777483696,0.24392074,4663.4,4663.3,1e-08]
[1757777483901,2.47880668,4663.4,4663.3,1e-08]
[1757777484232,2.47880668,4663.4,4663.1,0.003]
[1757777484233,2.93640417,4663.3,4663.1,1e-08]
[1757777484398,1.01449156,4663.2,4663.1,1e-08]
[1757777484598,2.26169156,4663.2,4663.1,1e-08]
[1757777484836,2.93658813,4662.9,4662.8,1e-08]
[1757777485007,3.15908142,4662.9,4662.8,1e-08]
[1757777485334,4.40628142,4662.9,4662.8,1e-08]
[1757777486015,3.15908142,4662.9,4662.8,1e-08]
[1757777486334,0.22249329,4662.9,4662.8,0.30220001]
[1757777486533,0.19568594,4662.9,4662.8,0.30220001]
[1757777486745,0.19568594,4662.9,4662.8,1e-08]
[1757777486926,0.22249329,4662.9,4662.8,0.30220001]
[1757777487231,0.19568594,4662.9,4662.8,1.20260001]
[1757777487897,2.493,4664.2,4662.8,1.20260001]
[1757777487898,0.22096246,4663.9,4662.8,1.20260001]
[1757777488106,0.19416086,4663.8,4662.9,0.4292]
[1757777488405,0.22096361,4663.7,4662.9,0.4292]
[1757777488604,0.19416086,4663.6,4662.9,0.4292]
[1757777488803,0.02679815,4664.5,4663.0,30.4874841]
[1757777489123,2.14347955,4665.4,4663.0,30.4874841]
[1757777489124,0.22102967,4665.3,4663.6,0.3022]
[1757777489320,0.19423611,4665.2,4663.8,3.0]
[1757777489519,0.22103081,4665.1,4664.0,3.0]
[1757777489734,0.19423611,4665.0,4664.2,3.0]
[1757777489905,0.19423611,4664.9,4664.3,1.59044]
[1757777490106,0.02678954,4666.0,4664.8,0.3022]
[1757777490402,0.02678954,4666.0,4664.9,6.5874]
[1757777490403,0.19444646,4665.9,4664.9,6.5874]
[1757777490615,2.97,4666.7,4664.9,6.5874]
[1757777490616,0.22123714,4665.8,4665.0,4.4712]
[1757777490937,0.19444646,4665.7,4665.1,0.91665957]
[1757777491136,0.19444646,4665.6,4665.2,0.4292]
[1757777491443,0.19444646,4665.5,4665.3,0.4292]
[1757777491605,0.19444646,4665.5,4664.1,2.14401235]
[1757777491606,3.0,4665.2,4659.6,0.4292]
[1757777491940,3.0,4665.2,4660.6,0.4292]
[1757777491941,3.0,4663.5,4660.6,0.4292]
[1757777492137,0.792,4663.2,4660.6,0.4292]
[1757777492437,4.15835266,4663.1,4660.6,0.4292]
[1757777492602,3.0,4662.0,4660.6,0.4292]
[1757777492802,2.14546892,4661.0,4660.6,0.4292]
[1757777493137,2.14523236,4661.5,4660.6,0.4292]
[1757777493336,2.14523236,4661.5,4660.2,2.14580782]
[1757777493337,0.22108116,4661.4,4660.9,0.7314]
[1757777493539,0.19426519,4661.3,4660.9,0.3022]
[1757777493836,0.1072,4661.1,4661.0,0.459]
[1757777494041,0.1072,4661.1,4661.0,0.7612]
[1757777494213,0.1072,4661.1,4661.0,3.15528234]
[1757777494570,0.1072,4661.1,4661.0,1.00982]
[1757777494571,0.30149429,4661.1,4661.0,1.00982]
[1757777494840,0.19429429,4661.1,4661.0,0.7314]
[1757777495144,0.30149429,4661.1,4661.0,0.3022]
[1757777496618,0.30149429,4661.1,4661.0,0.7314]
[1757777497943,0.61159429,4661.1,4660.8,0.08]
[1757777498253,0.61159429,4661.1,4651.1,6.06801175]
[1757777498254,0.792,4660.5,4658.3,0.4292]
[1757777498494,0.792,4660.5,4657.7,0.0298]
[1757777498495,0.8889977,4660.4,4658.8,0.5092]
[1757777498657,0.792,4660.1,4658.8,0.5092]
[1757777498858,0.32954406,4660.3,4658.8,0.5092]
[1757777498859,0.22111832,4660.0,4658.8,0.5092]
[1757777499059,0.19429429,4659.9,4658.8,0.5092]
[1757777499287,2.2810447,4660.3,4658.8,0.5092]
[1757777499288,0.19429429,4659.8,4658.9,0.01633107]
[1757777499577,0.02682288,4660.2,4659.0,2.0742]
[1757777499578,0.19429429,4659.7,4659.0,2.0742]
[1757777499777,0.1072,4659.2,4659.1,3.23369651]
[1757777499947,0.30149429,4659.2,4659.1,1.37323297]
[1757777500146,0.30149429,4659.2,4659.1,3.09037024]
[1757777500345,0.19429429,4659.2,4659.1,10.77970082]
[1757777500545,0.19429429,4659.2,4659.1,10.76337024]
[1757777500750,0.0268154,4661.5,4660.3,2.14576309]